bitfinex-derivatives/quotes_SOLF0:USTF0_20240905
["timestamp","ask_amount","ask_price","bid_price","bid_amount"]
[1725544973395,3.6963,135.28,135.21,2.5792]
[1725544973396,34.15,135.28,135.21,2.5792]
[1725544973689,3.698,135.22,135.17,3.699]
[1725544973996,34.15,135.28,135.16,34.15]
[1725544973997,1.0,135.27,135.16,34.15]
[1725544974297,34.20111801,135.23,135.2,0.0518497]
[1725544974499,34.20111801,135.23,135.0,268.5576]
[1725544974500,34.15,135.21,135.09,34.15]
[1725544974795,37.80988909,135.23,135.11,34.15]
[1725544974980,1.0,135.22,135.14,34.15]
[1725544975181,1.0,135.22,135.18,34.15]
[1725544975381,0.05103376,135.21,135.19,0.05093018]
[1725544975990,0.05103376,135.21,135.2,447.47449]
[1725544976792,3.697,135.25,135.21,3.6978]
[1725544977091,34.15,135.32,135.21,3.6978]
[1725544977287,34.15,135.3,135.2,447.47449]
[1725544977494,34.15,135.28,135.2,447.47449]
[1725544977697,0.27192329,135.27,135.2,447.47449]
[1725544977897,0.04692922,135.25,135.23,0.05073607]
[1725544978099,3.6973,135.24,135.23,0.05073607]
[1725544978690,3.6981,135.21,135.2,428.82599]
[1725544978891,37.8481,135.21,135.2,425.92524579]
[1725544979195,1.0,135.23,135.2,425.92524579]
[1725544979393,7.3922,135.29,135.2,425.92524579]
[1725544979394,34.15,135.28,135.2,425.92524579]
[1725544979588,0.05303548,135.25,135.2,425.92524579]
[1725544979793,0.05303548,135.25,135.23,0.05229136]
[1725544981193,3.6973,135.24,135.23,0.05229136]
[1725544982387,3.6981,135.21,135.2,425.92524579]
[1725544983694,0.05582208,135.22,135.2,425.92524579]
[1725544984694,3.6981,135.21,135.2,425.92524579]
[1725544984896,37.8481,135.21,135.2,425.92524579]
[1725544985288,3.6981,135.21,135.2,425.92524579]
[1725544986793,37.8481,135.21,135.2,425.92524579]
[1725544986993,37.8481,135.21,135.2,211.35524579]
[1725544987398,37.8481,135.21,135.2,137.06084579]
[1725544987399,79.3943,135.21,135.2,137.06084579]
[1725544987599,79.66646073,135.21,135.2,106.87634578]
[1725544987798,79.66646073,135.21,135.03,2.698]
[1725544987799,1.0,135.2,135.03,2.698]
[1725544987991,34.15,135.13,135.03,2.698]
[1725544988192,37.7626031,135.13,135.03,2.698]
[1725544988698,34.15,135.06,134.96,2.7197]
[1725544988898,34.15,135.06,135.0,0.04965935]
[1725544988899,3.7038,135.01,135.0,0.04965935]
[1725544997810,34.15,135.02,134.88,36.9606]
[1725544998002,34.15,134.99,134.88,36.9606]
[1725544998402,3.61877224,134.98,134.88,36.9606]
[1725544998600,34.15,134.99,134.88,36.9606]
[1725544998805,34.15,134.99,134.92,0.05419844]
[1725544998806,34.20520967,134.95,134.92,0.05419844]
[1725544999006,37.93704537,134.95,134.92,0.05419844]
[1725544999206,3.78704537,134.95,134.92,0.05419844]
[1725544999710,3.7058,134.93,134.92,0.05419844]
[1725544999907,3.78704537,134.95,134.92,0.05419844]
[1725545000108,37.93704537,134.95,134.92,0.05419844]
[1725545000408,37.8558,134.93,134.92,0.05419844]
[1725545000606,34.15,134.93,134.82,5.4621]
[1725545000806,34.15,134.9,134.82,5.4621]
[1725545001009,34.15,134.88,134.82,5.4621]
[1725545001305,3.7081,134.85,134.82,5.4621]
[1725545001510,3.75371029,134.87,134.82,5.4621]
[1725545001702,0.05509787,134.85,134.82,5.51854597]
[1725545002715,3.71401009,134.91,134.82,39.6121]
[1725545002915,1.0,134.92,134.82,39.6121]
[1725545003411,3.64425645,134.91,134.82,39.6121]
[1725545003614,0.0517508,134.88,134.85,0.05383863]
[1725545004013,0.0517508,134.88,134.85,3.76173863]
[1725545004217,1.0,134.92,134.85,0.05383863]
[1725545004410,34.15,135.0,134.86,37.86401009]
[1725545004713,34.15,134.95,134.84,34.15]
[1725545005107,3.7066,134.9,134.86,3.7076]
[1725545005303,0.04870109,134.89,134.87,0.05516335]
[1725545005506,1.0,134.94,134.87,0.05516335]
[1725545005712,3.7063,134.91,134.87,0.05516335]
[1725545005901,1.0,134.94,134.87,0.05516335]
[1725545006107,3.7063,134.91,134.87,3.76236335]
[1725545006303,4.71765503,134.94,134.87,0.05516335]
[1725545006505,0.05278288,134.92,134.87,0.05516335]
[1725545006714,3.7067,134.9,134.87,0.05516335]
[1725545007008,0.05278288,134.92,134.87,0.05516335]
[1725545007202,3.7065,134.91,134.87,0.05516335]
[1725545007403,0.05278288,134.92,134.87,0.05516335]
[1725545009511,1.0,134.94,134.89,34.15]
[1725545009705,34.15,135.01,134.89,34.15]
[1725545009905,34.15,134.99,134.89,3.7067]
[1725545010210,34.15,134.96,134.86,34.15]
[1725545010611,0.05484743,134.92,134.9,0.05011186]
[1725545011109,3.76104743,134.92,134.9,0.05011186]
[1725545011306,0.05484743,134.92,134.9,0.05011186]
[1725545012210,3.7063,134.91,134.9,0.05011186]
[1725545012604,0.05484743,134.92,134.9,0.05011186]
[1725545012810,3.76114743,134.92,134.9,0.05011186]
[1725545013004,0.05484743,134.92,134.9,0.05011186]
[1725545013812,3.7063,134.91,134.9,0.05011186]
[1725545014813,34.20484743,134.92,134.82,5.4621]
[1725545014814,34.15,134.92,134.82,5.4621]
[1725545015020,34.15,134.86,134.82,5.4621]
[1725545015211,3.65635135,134.85,134.82,5.4621]
[1725545015409,3.7084,134.84,134.82,5.4621]
[1725545015606,3.76413792,134.84,134.82,5.51282593]
[1725545015808,0.05573792,134.84,134.82,5.51282593]
[1725545016216,3.735827,134.84,134.82,0.05072593]
[1725545016411,37.885827,134.84,134.82,0.05072593]
[1725545016721,3.7085,134.83,134.82,0.05072593]
[1725545017315,3.735827,134.84,134.82,0.05072593]
[1725545017526,0.05573792,134.84,134.82,0.05072593]
[1725545018013,1.0,134.9,134.82,0.05072593]
[1725545018920,0.05421014,134.87,134.82,0.05072593]
[1725545019223,1.0,134.9,134.82,0.05072593]
[1725545019417,1.0,134.9,134.82,3.75932593]
[1725545019616,3.7073,134.88,134.82,3.75932593]
[1725545019816,3.68858542,134.87,134.82,0.05072593]
[1725545020017,1.0,134.9,134.82,0.05072593]
[1725545020018,3.7079,134.86,134.82,0.05072593]
[1725545020320,0.04607593,134.85,134.82,0.05072593]
[1725545022317,3.75407593,134.85,134.82,0.05072593]
[1725545022519,0.04607593,134.85,134.82,0.05072593]
[1725545022821,3.7085,134.84,134.82,0.05072593]
[1725545023134,0.04607593,134.85,134.82,0.05072593]
[1725545023418,3.75417593,134.85,134.82,0.05072593]
[1725545023626,0.04607593,134.85,134.82,0.05072593]
[1725545024426,1.0,134.9,134.82,0.05072593]
[1725545024621,1.0,134.9,134.84,3.7082]
[1725545025019,1.0,134.9,134.8,34.15]
[1725545025213,1.0,134.9,134.8,37.91753557]
[1725545025420,1.0,134.9,134.84,0.05469646]
[1725545026020,3.708,134.85,134.84,0.05469646]
[1725545026735,34.15,134.89,134.84,0.05469646]
[1725545027225,3.7073,134.88,134.84,0.05469646]
[1725545027531,34.15,134.89,134.84,0.05469646]
[1725545027719,3.7078,134.86,134.81,2.86349646]
[1725545027920,3.7078,134.86,134.77,5.3266]
[1725545027921,3.73395652,134.85,134.77,5.3266]
[1725545028120,34.15,134.87,134.79,3.7094]
[1725545028328,37.92142221,134.87,134.78,2.7669]
[1725545028525,34.15,134.85,134.78,2.7669]
[1725545028732,3.7092,134.81,134.8,0.05500963]
[1725545029528,34.19827281,134.83,134.8,0.05500963]
[1725545030027,37.8591,134.81,134.8,0.05500963]
[1725545030228,34.15,134.81,134.74,2.7669]
[1725545030426,1.0,134.82,134.75,3.7104]
[1725545030733,1.0,134.82,134.74,2.7669]
[1725545030925,34.15,134.81,134.74,2.7669]
[1725545031125,0.05476067,134.79,134.76,0.05105408]
[1725545031326,3.82285509,134.79,134.76,0.05105408]
[1725545031527,37.97285509,134.79,134.76,0.05105408]
[1725545031823,3.7102,134.77,134.76,0.05105408]
[1725545032734,1.0,134.78,134.76,0.05105408]
[1725545033130,4.71,134.78,134.76,0.05105408]
[1725545033332,1.0,134.78,134.76,0.05105408]
[1725545034928,0.05476067,134.79,134.76,0.05105408]
[1725545036430,3.7102,134.77,134.76,0.05105408]
[1725545038739,3.71,134.78,134.76,0.05105408]
[1725545038939,0.05476067,134.79,134.76,0.05105408]
[1725545039136,3.76456067,134.79,134.76,0.05105408]
[1725545040041,3.7099,134.78,134.76,0.05105408]
[1725545040229,34.15,134.78,134.76,0.05105408]
[1725545040635,3.7102,134.77,134.76,0.05105408]
[1725545041439,3.7112,134.74,134.7,2.7454]
[1725545041644,35.15,134.76,134.68,5.2634]
[1725545042144,28.5,134.75,134.68,5.2634]
[1725545042645,0.04844187,134.73,134.7,0.05619706]
[1725545042844,3.69378034,134.73,134.7,0.05619706]
[1725545043046,3.7116,134.72,134.7,0.05619706]
[1725545043344,3.69378034,134.73,134.7,0.05619706]
[1725545043742,3.7115,134.72,134.7,0.05619706]
[1725545044048,1.0,134.72,134.7,0.05619706]
[1725545044942,83.11679204,134.88,134.71,28.5]
[1725545045137,83.11679204,134.88,134.7,0.05619706]
[1725545045138,28.5,134.84,134.73,28.5]
[1725545045336,3.7083,134.84,134.75,28.5]
[1725545045541,28.5,134.84,134.76,2.5669]
[1725545045845,0.05035519,134.81,134.79,0.05015455]
[1725545046348,3.84361228,134.81,134.79,0.05015455]
[1725545046551,0.05035519,134.81,134.79,0.05015455]
[1725545047553,3.7093,134.8,134.79,0.05015455]
[1725545047848,32.34404721,134.81,134.69,28.5]
[1725545048040,28.5,134.77,134.69,31.2108]
[1725545048241,29.5,134.79,134.69,31.2108]
[1725545048547,3.7106,134.76,134.69,31.2108]
[1725545048757,28.5,134.77,134.69,31.2108]
[1725545048949,0.05271339,134.74,134.72,0.04940485]
[1725545049456,29.5,134.79,134.72,0.04940485]
[1725545049952,1.0,134.79,134.72,0.04940485]
[1725545050154,3.7103,134.77,134.74,3.7108]
[1725545050360,1.0,134.79,134.75,34.22]
[1725545050563,0.04864354,134.78,134.76,0.05678747]
[1725545050758,0.05169351,134.78,134.77,3.7102]
[1725545050960,0.05169351,134.78,134.76,0.04718555]
[1725545051465,3.7102,134.77,134.76,0.04718555]
[1725545052357,0.05169351,134.78,134.76,0.04718555]
[1725545053264,34.22,134.84,134.77,3.7099]
[1725545053462,230.4136,134.9,134.73,37.85102379]
[1725545053667,0.27282836,134.86,134.75,34.22]
[1725545053855,3.7092,134.81,134.73,37.85102379]
[1725545054061,3.78471399,134.8,134.73,34.22]
[1725545054359,34.22,134.84,134.77,3.7101]
[1725545054360,0.04710665,134.78,134.77,3.7101]
[1725545054560,37.85547858,134.84,134.73,37.94123325]
[1725545054760,37.85547858,134.84,134.78,3.7097]
[1725545054966,3.709,134.82,134.78,3.7097]
[1725545055167,37.85547858,134.84,134.73,37.94123325]
[1725545055369,3.63547858,134.84,134.75,34.22]
[1725545055667,34.22,134.89,134.78,0.05106667]
[1725545055857,0.27279585,134.88,134.82,0.05534935]
[1725545056060,3.7081,134.85,134.82,0.05534935]
[1725545056464,34.22,134.89,134.82,0.05534935]
[1725545056659,34.22,134.87,134.82,0.05534935]
[1725545056963,3.7085,134.83,134.82,0.05534935]
[1725545057564,0.27285053,134.83,134.72,34.22]
[1725545057767,0.27285053,134.83,134.7,2.8155]
[1725545057768,34.22,134.82,134.71,5.2767]
[1725545058067,3.7103,134.77,134.71,5.2767]
[1725545058264,34.22,134.79,134.71,5.2767]
[1725545058470,34.22,134.79,134.72,3.7115]
[1725545058667,34.22,134.79,134.74,0.05204204]
[1725545058668,0.05413127,134.77,134.74,0.05204204]
[1725545058967,1.0,134.82,134.74,0.05204204]
[1725545059265,4.7088,134.82,134.74,0.05204204]
[1725545059466,7.4137,134.9,134.81,3.7091]
[1725545059467,34.22,134.86,134.81,3.7091]
[1725545059667,0.27280327,134.85,134.75,34.22]
[1725545059964,3.6274499,134.84,134.79,3.76642524]
[1725545060368,3.7088,134.82,134.79,3.76642524]
[1725545060671,34.22,134.86,134.8,3.7093]
[1725545061069,3.7085,134.83,134.8,3.7093]
[1725545061468,3.709,134.82,134.79,0.05692524]
[1725545061665,34.22,134.86,134.79,0.05692524]
[1725545061862,34.22,134.89,134.79,0.05692524]
[1725545062076,3.7081,134.85,134.83,0.05625622]
[1725545062261,3.73172749,134.86,134.83,0.05625622]
[1725545062467,3.7081,134.85,134.83,0.05625622]
[1725545062672,3.7081,134.85,134.83,0.05633975]
[1725545062868,3.64519309,134.86,134.83,0.05633975]
[1725545063062,4.68340733,134.88,134.83,0.05633975]
[1725545063267,34.22,134.85,134.83,0.05633975]
[1725545063468,3.7082,134.84,134.83,0.05633975]
[1725545064269,3.98101612,134.84,134.83,0.05633975]
[1725545064466,0.27281612,134.84,134.73,34.22]
[1725545064867,1.0,134.83,134.75,34.22]
[1725545065074,1.0,134.83,134.79,3.7094]
[1725545065573,0.05259095,134.82,134.8,0.05166481]
[1725545066776,3.7091,134.81,134.8,0.05166481]
[1725545067166,0.05259095,134.82,134.8,0.05166481]
[1725545067870,3.76139095,134.82,134.8,0.05166481]
[1725545068070,0.05259095,134.82,134.8,0.05166481]
[1725545068471,3.7091,134.81,134.8,0.05166481]
[1725545069177,3.76149095,134.82,134.8,0.05166481]
[1725545069478,0.05259095,134.82,134.8,0.05166481]
[1725545069671,0.05259095,134.82,134.81,3.7091]
[1725545069870,0.05259095,134.82,134.8,0.05166481]
[1725545070075,0.05259095,134.82,134.8,3.76076481]
[1725545070379,0.05259095,134.82,134.8,0.05166481]
[1725545070768,3.708,134.85,134.8,0.05166481]
[1725545070973,28.49,134.89,134.8,0.05166481]
[1725545071173,3.7084,134.84,134.81,3.7089]
[1725545071576,3.72365687,134.85,134.81,3.7089]
[1725545071782,3.7085,134.83,134.81,0.04983086]
[1725545071975,3.7085,134.83,134.81,0.05688892]
[1725545072683,3.7085,134.83,134.81,3.76588892]
[1725545073079,28.49,134.87,134.81,0.05688892]
[1725545073377,4.70205426,134.88,134.81,28.54688892]
[1725545073575,1.0,134.88,134.86,3.7075]
[1725545073779,28.49,134.94,134.86,0.05308758]
[1725545074079,3.7065,134.91,134.88,3.707]
[1725545074277,3.68276307,134.91,134.88,0.05188808]
[1725545074574,28.49,134.9,134.88,0.05188808]
[1725545074770,3.7069,134.89,134.88,0.05188808]
[1725545074973,28.49,134.9,134.78,31.2331]
[1725545075175,3.7079,134.86,134.82,3.7087]
[1725545075479,1.0,134.89,134.8,32.11785737]
[1725545075674,7.33674302,134.88,134.84,3.708]
[1725545076069,1.0,134.89,134.85,28.54193279]
[1725545076070,0.0494933,134.87,134.85,28.54193279]
[1725545076271,28.49,134.96,134.88,3.7071]
[1725545076476,0.27263842,134.95,134.88,3.7071]
[1725545076872,22.26263842,134.96,134.88,3.7071]
[1725545077070,22.26263842,134.96,134.87,3.7074]
[1725545077272,22.26263842,134.96,134.9,0.0469824]
[1725545077475,28.49,134.94,134.9,0.0469824]
[1725545077877,0.27263334,134.93,134.9,0.0469824]
[1725545078077,3.7058,134.93,134.9,0.0469824]
[1725545078589,3.7062,134.92,134.9,0.0469824]
[1725545078787,3.77790834,134.91,134.9,0.0469824]
[1725545079282,3.7063,134.91,134.9,0.0469824]
[1725545079481,7.77208321,134.91,134.9,0.0469824]
[1725545079687,28.49,134.92,134.75,227.0]
[1725545079876,28.49,134.94,134.8,2.7841]
[1725545079877,28.49,134.88,134.8,2.7841]
[1725545080182,33.1967,134.9,134.81,28.49]
[1725545080383,4.7067,134.9,134.83,28.49]
[1725545080682,0.05621557,134.88,134.85,0.05207247]
[1725545080985,0.05621557,134.88,134.87,3.7074]
[1725545081186,0.27264904,134.93,134.85,32.14108809]
[1725545081775,3.7068,134.9,134.85,32.14108809]
[1725545081977,32.26160441,134.94,134.88,3.707]
[1725545082183,0.27265716,134.93,134.9,0.048974]
[1725545082476,28.49,134.96,134.9,0.048974]
[1725545082878,1.2726239,134.95,134.9,0.048974]
[1725545083080,3.7059,134.93,134.9,0.048974]
[1725545083278,7.45265951,134.93,134.9,0.048974]
[1725545083481,3.7059,134.93,134.9,0.048974]
[1725545083687,3.7056,134.94,134.9,3.755374]
[1725545084079,1.0,134.95,134.9,0.048974]
[1725545084384,0.27261447,134.94,134.9,0.048974]
[1725545084587,3.77679588,135.01,134.91,28.49]
[1725545084784,0.27251056,135.0,134.96,3.7049]
[1725545084991,3.7035,135.02,134.96,3.7049]
[1725545085181,3.61456943,135.02,134.97,0.04801241]
[1725545085383,28.49,135.05,134.97,0.04801241]
[1725545085586,28.49,135.03,134.97,0.04801241]
[1725545085790,32.13532384,135.03,134.99,0.05611504]
[1725545086085,3.7038,135.01,134.99,0.05611504]
[1725545086287,3.7038,135.01,134.91,28.49]
[1725545086288,28.49,135.01,134.91,28.49]
[1725545086493,3.704,135.0,134.94,3.7052]
[1725545086680,4.704,135.0,134.94,3.7052]
[1725545086887,1.0,135.0,134.91,32.12309619]
[1725545087392,0.05069482,134.97,134.94,0.05618061]
[1725545088188,32.1952,134.95,134.94,0.05618061]
[1725545088387,0.05069482,134.97,134.94,0.05618061]
[1725545088388,28.54069482,134.97,134.94,0.05618061]
[1725545088589,3.7052,134.95,134.94,0.05618061]
[1725545089194,1.0,134.96,134.94,0.05618061]
[1725545090087,0.05069482,134.97,134.94,0.05618061]
[1725545091386,3.7052,134.95,134.94,0.05618061]
[1725545091593,28.49,134.95,134.88,5.497]
[1725545091988,3.7061,134.92,134.88,5.497]
[1725545092189,3.64525548,134.92,134.88,5.497]
[1725545092391,3.7059,134.93,134.88,5.497]
[1725545092690,3.81787339,134.92,134.89,0.04713966]
[1725545093196,0.05544766,134.92,134.89,0.04713966]
[1725545093595,3.76154766,134.92,134.89,0.04713966]
[1725545094696,0.05544766,134.92,134.89,0.04713966]
[1725545095299,0.05544766,134.92,134.89,3.75393966]
[1725545096003,0.05544766,134.92,134.89,0.04713966]
[1725545096896,3.76154766,134.92,134.89,0.04713966]
[1725545097291,0.05544766,134.92,134.89,0.04713966]
[1725545097898,3.7065,134.91,134.89,0.04713966]
[1725545099006,0.05544766,134.92,134.89,0.04713966]
[1725545099007,3.7066,134.9,134.89,0.04713966]
[1725545099207,28.49,134.91,134.82,2.608]
[1725545099399,28.49,134.88,134.82,2.608]
[1725545099603,28.49,134.88,134.82,6.3166]
[1725545099810,28.49,134.88,134.82,2.608]
[1725545100012,3.7083,134.84,134.82,2.608]
[1725545100212,3.7083,134.84,134.81,8.9746]
[1725545100213,28.49,134.88,134.78,3.79353786]
[1725545100516,3.7085,134.83,134.82,0.0504472]
[1725545100811,3.68863814,134.83,134.81,0.04928862]
[1725545101007,3.7107,134.75,134.74,2.608]
[1725545101208,29.49,134.87,134.67,37.40459005]
[1725545101209,3.795932,134.76,134.67,37.40459005]
[1725545101415,28.49,134.79,134.68,2.7615]
[1725545101612,28.49,134.8,134.68,2.7615]
[1725545101613,3.7116,134.72,134.68,2.7615]
[1725545102006,3.70870759,134.74,134.68,2.7615]
[1725545102007,0.05525938,134.71,134.69,0.04694745]
[1725545102207,0.05059459,134.71,134.69,0.04694745]
[1725545102610,3.7121,134.7,134.69,0.04694745]
[1725545102913,3.7121,134.7,134.54,7.4328]
[1725545102914,28.49,134.71,134.6,2.7615]
[1725545103115,32.18460322,134.74,134.6,2.7615]
[1725545103116,3.713,134.67,134.6,2.7615]
[1725545103412,1.0,134.7,134.61,3.68235468]
[1725545103606,1.0,134.7,134.6,2.7615]
[1725545103810,0.04877994,134.66,134.64,0.05212045]
[1725545105515,3.7135,134.65,134.64,0.05212045]
[1725545105714,0.04877994,134.66,134.64,0.05212045]
[1725545105908,28.49,134.65,134.55,2.6064]
[1725545106115,28.49,134.65,134.55,5.3051]
[1725545106314,1.0,134.64,134.55,5.3051]
[1725545106711,3.7149,134.6,134.55,9.0211]
[1725545107025,0.04976737,134.59,134.56,0.05211199]
[1725545107320,0.04976737,134.59,134.57,3.7155]
[1725545108211,0.04976737,134.59,134.56,0.05211199]
[1725545108619,28.49,134.58,134.56,0.05211199]
[1725545108919,35.8919643,134.58,134.56,0.05211199]
[1725545109122,32.1762643,134.58,134.56,0.05211199]
[1725545109311,0.04976737,134.59,134.56,0.05211199]
[1725545109714,0.04976737,134.59,134.58,3.7154]
[1725545109916,0.04976737,134.59,134.56,0.05211199]
[1725545110316,0.04976737,134.59,134.58,3.7154]
[1725545110815,0.04976737,134.59,134.57,3.7156]
[1725545111025,0.04976737,134.59,134.56,0.05211199]
[1725545111812,3.76506737,134.59,134.56,0.05211199]
[1725545112017,0.04976737,134.59,134.56,0.05211199]
[1725545112417,0.04976737,134.59,134.58,3.7154]
[1725545113022,1.0,134.64,134.57,32.29639167]
[1725545113219,3.73504718,134.67,134.59,28.49]
[1725545113416,28.49,134.69,134.59,28.49]
[1725545113622,28.49,134.71,134.61,28.49]
[1725545113820,28.49,134.73,134.61,28.49]
[1725545114017,0.05102975,134.68,134.67,3.7129]
[1725545114222,0.05011729,134.69,134.66,0.05253761]
[1725545114719,0.05011729,134.69,134.66,3.76563761]
[1725545115318,0.05011729,134.69,134.66,0.05253761]
[1725545116815,0.05011729,134.69,134.68,3.7126]
[1725545117121,3.74981429,134.77,134.68,28.49]
[1725545117321,3.7102,134.77,134.68,28.49]
[1725545117627,3.7794194,134.78,134.68,28.49]
[1725545117825,28.49,134.79,134.69,3.72967555]
[1725545118021,28.49,134.76,134.67,5.3143]
[1725545118326,28.49,134.76,134.7,0.05042281]
[1725545118327,3.711,134.74,134.7,0.05042281]
[1725545119024,3.7118,134.71,134.7,0.05042281]
[1725545119326,28.49,134.71,134.61,2.6558]
[1725545120226,0.04899222,134.67,134.65,0.05529032]
[1725545120824,33.12352884,134.75,134.65,0.05529032]
[1725545121029,33.12352884,134.75,134.61,2.6558]
[1725545121030,1.0,134.75,134.66,28.49]
[1725545121222,4.76290574,134.75,134.66,28.49]
[1725545121423,3.7112,134.74,134.69,3.7122]
[1725545121622,1.0,134.75,134.68,28.49]
[1725545121925,0.05416183,134.73,134.7,0.04901657]
[1725545122322,0.05416183,134.73,134.7,2.77091657]
[1725545122523,0.05416183,134.73,134.72,3.7115]
[1725545122823,0.05416183,134.73,134.7,2.77091657]
[1725545123026,0.05416183,134.73,134.7,0.04901657]
[1725545123027,3.76546183,134.73,134.7,0.04901657]
[1725545123227,0.05416183,134.73,134.7,0.04901657]
[1725545123428,0.05416183,134.73,134.72,3.7115]
[1725545123632,223.6823,134.83,134.7,2.7219]
[1725545124028,34.24,134.77,134.7,2.7219]
[1725545124524,1.0,134.76,134.7,2.7219]
[1725545124730,0.05547766,134.74,134.72,0.0533464]
[1725545125330,36.8885,134.84,134.72,34.2933464]
[1725545125635,36.8885,134.84,134.72,34.24]
[1725545125934,3.7096,134.79,134.72,34.24]
[1725545126132,1.0,134.83,134.72,34.24]
[1725545126336,0.04944116,134.79,134.76,0.05697848]
[1725545127530,3.7102,134.77,134.76,0.05697848]
[1725545128330,34.24,134.78,134.7,6.4339]
[1725545128331,3.7112,134.74,134.7,6.4339]
[1725545129123,34.24,134.8,134.7,2.7219]
[1725545129324,0.05459336,134.76,134.74,0.05025298]
[1725545129831,3.7107,134.75,134.74,0.05025298]
[1725545130336,0.05459336,134.76,134.74,0.05025298]
[1725545131441,3.76529336,134.76,134.74,0.05025298]
[1725545131738,0.05459336,134.76,134.74,0.05025298]
[1725545131926,0.05459336,134.76,134.74,3.76105298]
[1725545132526,0.05459336,134.76,134.75,3.7107]
[1725545132929,0.05459336,134.76,134.74,0.05025298]
[1725545133234,35.24,134.83,134.74,0.05025298]
[1725545133436,35.24,134.83,134.71,34.24]
[1725545133629,3.7099,134.79,134.76,3.7104]
[1725545134128,3.76088473,134.79,134.76,3.76575225]
[1725545134536,0.05098473,134.79,134.78,3.7099]
[1725545134931,1.0,134.83,134.76,0.05535225]
[1725545135131,3.7091,134.81,134.78,3.7096]
[1725545135334,1.0,134.83,134.77,2.6759]
[1725545135834,0.05361307,134.81,134.79,0.04877936]
[1725545136039,0.05361307,134.81,134.79,0.05071021]
[1725545136040,0.05365455,134.81,134.79,0.05071021]
[1725545136233,0.05365455,134.81,134.8,3.7093]
[1725545136426,0.05365455,134.81,134.79,0.05071021]
[1725545136833,3.7093,134.8,134.79,0.05071021]
[1725545137137,0.05365455,134.81,134.79,0.05071021]
[1725545137733,3.77199495,134.89,134.79,0.05071021]
[1725545137734,38.01199495,134.89,134.79,0.05071021]
[1725545137939,38.01199495,134.89,134.78,36.8168]
[1725545138443,3.7079,134.86,134.83,3.7084]
[1725545138633,3.7079,134.86,134.83,0.04946214]
[1725545138829,3.7075,134.87,134.84,3.7081]
[1725545139031,34.24,134.92,134.83,0.04946214]
[1725545139238,6.30997842,134.93,134.86,0.04990971]
[1725545139434,2.6096,134.93,134.86,0.04990971]
[1725545139838,34.24,134.91,134.86,0.04990971]
[1725545140041,34.24,134.89,134.78,2.5768]
[1725545140241,34.24,134.87,134.78,2.5768]
[1725545140441,3.71171134,134.86,134.78,2.5768]
[1725545140646,34.24,134.89,134.78,2.5768]
[1725545141134,3.7085,134.84,134.82,0.05471861]
[1725545141643,0.04674164,134.85,134.82,0.05471861]
[1725545141838,1.0,134.88,134.82,0.05471861]
[1725545141839,1.0,134.88,134.83,34.24]
[1725545142043,3.74583178,134.93,134.83,34.24]
[1725545142341,3.7065,134.91,134.88,3.7069]
[1725545142842,3.7065,134.91,134.88,3.75670422]
[1725545143037,3.71783559,134.95,134.88,0.04980422]
[1725545143241,34.24,134.98,134.9,0.05051731]
[1725545143441,34.24,134.98,134.87,34.24]
[1725545143442,3.7057,134.94,134.93,0.05433674]
[1725545144246,34.24,134.96,134.86,5.1325]
[1725545144446,34.24,134.93,134.86,5.1325]
[1725545144846,34.24,134.93,134.86,2.5726]
[1725545145046,34.24,134.91,134.84,3.7081]
[1725545145248,34.24,134.91,134.86,0.05460126]
[1725545145249,0.04769661,134.89,134.86,0.05460126]
[1725545145848,3.7073,134.88,134.86,0.05460126]
[1725545146045,0.04769661,134.89,134.86,0.05460126]
[1725545147056,3.7074,134.87,134.86,0.05460126]
[1725545148753,3.7083,134.84,134.79,5.2478]
[1725545148955,3.7083,134.84,134.81,3.709]
[1725545149151,34.24,134.89,134.79,5.2478]
[1725545149662,0.04687608,134.85,134.83,0.05687672]
[1725545149855,0.0487258,134.85,134.83,0.05687672]
[1725545150359,3.7568258,134.85,134.83,0.05687672]
[1725545150551,0.0487258,134.85,134.83,0.05687672]